Cogmind - Beta 13 @@@ ROGUE MODE // 2024.04.21 @ 20:55:39 Player: Haddoc Result: Destroyed by D-53 Grenadier with Mini Grenade Launcher Performance ------------- Evolutions (0) 0 Regions Visited (4) 800 Robots Destroyed (25) 125 Value Destroyed (490) 490 Prototype IDs (0) 0 Alien Tech Used (0) 0 Bonus (87) 87 TOTAL SCORE: 1502 Bonus ------- Follower Combat Kills 87 Cogmind --------- Core Integrity 0/250 Matter 300/300 Energy 100/100 System Corruption 0% Temperature Cool (0) Movement Rolling (100) Location -9/Mines Parts ------- > --- POWER (1) -------- (None) > --- PROPULSION (2) --- Compact Wheel > --- UTILITY (2) ------ Medium Storage Unit ECM Suite > --- WEAPON (2) ------- (None) > --- INVENTORY (10) --- Light Ion Engine Improved Heat Sink High-capacity Matter Pod (200) Sensor Array Bomb Drone Bay Small Laser Small Laser Rocket Launcher Peak State ------------ > --- POWER ------------ Light Ion Engine > --- PROPULSION ------- Compact Wheel > --- UTILITY ---------- Medium Storage Unit ECM Suite > --- WEAPON ----------- Grenade Launcher Enhanced Flamer > --- INVENTORY -------- Light Ion Engine Improved Heat Sink High-capacity Matter Pod Sensor Array Bomb Drone Bay Small Laser Small Laser Rocket Launcher [Rating: 10] Favorites ----------- Power Light Ion Engine Engine Light Ion Engine Propulsion Compact Wheel Treads Light Treads Wheel Compact Wheel Utility ECM Suite Device ECM Suite Storage Small Storage Unit Weapon Enhanced Flamer Energy Gun Small Laser Launcher Grenade Launcher Special Weapon Enhanced Flamer Build | -11 -10 -10 -10 -9 ------- Run | Yrd Mat Min Exi Min Slots Evolved . | . . . . . Power . | . . . . . Propulsion . | . . . . . Utility . | . . . . . Weapon . | . . . . . Parts Attached 21 | 5 12 3 1 . Power 4 | 1 2 1 . . Engine 4 | 1 2 1 . . Core . | . . . . . Reactor . | . . . . . Propulsion 4 | 2 2 . . . Treads 2 | 2 . . . . Leg . | . . . . . Wheel 2 | . 2 . . . Hover . | . . . . . Flight . | . . . . . Utility 5 | 1 3 . 1 . Device 1 | . 1 . . . Storage 4 | 1 2 . 1 . Processor . | . . . . . Hackware . | . . . . . Protection . | . . . . . Artifact . | . . . . . Weapon 8 | 1 5 2 . . Energy Gun 6 | 1 5 . . . Energy Cannon . | . . . . . Ballistic Gun . | . . . . . Ballistic Cannon . | . . . . . Launcher 1 | . . 1 . . Special Weapon 1 | . . 1 . . Impact Weapon . | . . . . . Slashing Weapon . | . . . . . Piercing Weapon . | . . . . . Special Melee Weapon . | . . . . . Unidentified Prototypes . | . . . . . Parts Lost 8 | . 3 2 . 3 Power 2 | . . 1 . 1 Propulsion 2 | . 1 1 . . Utility . | . . . . . Weapon 4 | . 2 . . 2 Highest Loss Streak 3 | . 1 1 . 3 To Critical Strikes 1 | . . 1 . . Average Slot Usage (%) 90 | . 92 93 85 83 Engine 13 | . 14 12 14 13 Treads 6 | . 16 . . . Wheel 14 | . 8 23 14 14 Device 13 | . 13 14 14 14 Storage 13 | . 12 14 14 14 Energy Gun 12 | . 25 7 . . Launcher 6 | . . 7 14 13 Special Weapon 7 | . . 13 14 14 Naked Turns . | . . . . . Heaviest Build 90 | 12 90 15 20 20 Greatest Support 40 | 40 40 26 16 16 Greatest Overweight (x) 4 | 1 4 . 1 1 Average Overweight (x) . | . . . . 1 Largest Inventory Capacity 25 | 8 25 8 10 10 Average Capacity 12 | 7 17 8 9 10 Most Carried 9 | 6 5 6 7 9 Average Carried 4 | 3 2 4 6 7 Final Capacity 10 | 8 8 8 10 10 Final Carried 9 | 3 2 6 7 9 Class Distribution -------------------- 79% | Mutant 20% | Scavenger-Mutant Dominant Class ---------------- Mutant | -10/Materials Mutant | -10/Mines Mutant | -10/Exiles Mutant | -9/Mines Resources | -11 -10 -10 -10 -9 ----------- Run | Yrd Mat Min Exi Min Matter Collected 553 | 229 128 60 58 78 Remotely . | . . . . . Salvage Created 756 | . 713 14 . 29 Parts 43 | . 36 7 . . Haulers Intercepted . | . . . . . Recyclers Shooed 5 | . 5 . . . Parts Field Recycled . | . . . . . Retrieved Matter . | . . . . . Parts Self-Destructed . | . . . . . Prevented . | . . . . . Kills | -11 -10 -10 -10 -9 ------- Run | Yrd Mat Min Exi Min Combat Hostiles Destroyed 17 | . 10 6 . 1 Guns 9 | . 9 . . . AOE 8 | . 1 6 . 1 Classes Destroyed 7 | . 7 . . . Worker 1 | . 1 . . . Builder 1 | . 1 . . . Recycler 3 | . 3 . . . Operator 2 | . 2 . . . Watcher 1 | . 1 . . . Swarmer 9 | . 3 6 . . Grunt 8 | . 7 . . 1 Best Kill Streak 5 | . 5 3 . 1 Combat Bots Only 5 | . 5 3 . 1 Max Kills in Single Turn 3 | . 1 3 . 1 Gunslinging . | . . . . . Exploded 3 | . 1 3 . 1 Melee . | . . . . . Uniques/NPCs Destroyed . | . . . . . Combat | -11 -10 -10 -10 -9 -------- Run | Yrd Mat Min Exi Min Hostile Shots Fired 121 | . 98 18 . 5 Missed 35 | . 27 6 . 2 Damage Taken 1059 | . 783 160 . 116 Core 258 | . 201 15 . 42 Absorbed by Shields . | . . . . . Core Remaining (%) 100 | 100 . . . . Volleys Fired 87 | . 75 9 . 3 Largest 2 | . 2 1 . 1 Hottest 90 | . 90 30 . 30 Shots Fired 133 | . 121 9 . 3 Gun 121 | . 121 . . . Cannon . | . . . . . Launcher 12 | . . 9 . 3 Special . | . . . . . Kinetic . | . . . . . Thermal 99 | . 99 . . . Explosive 12 | . . 9 . 3 Electromagnetic 22 | . 22 . . . Robot Hit Streak 10 | . 10 2 . 4 Robot Miss Streak 6 | . 6 1 . 1 Penetration Max . | . . . . . Secondary Targets 1 | . 1 . . . Max Gunslinging Chain 1 | . 1 . . . Shots Hit Robots 81 | . 77 2 . 2 Core Hits 41 | . 30 8 . 3 Critical Kills . | . . . . . Critical Parts Destroyed . | . . . . . Critical Strikes 3 | . 3 . . . Burn 3 | . 3 . . . Melee Attacks . | . . . . . Impact . | . . . . . Slashing . | . . . . . Piercing . | . . . . . Sneak Attacks . | . . . . . Combat Hostiles . | . . . . . Follow-up Attacks . | . . . . . Damage Inflicted 1537 | . 1053 377 . 107 Guns 961 | . 961 . . . Cannons . | . . . . . Explosions 570 | . 86 377 . 107 Melee . | . . . . . Ramming 6 | . 6 . . . Kinetic . | . . . . . Thermal 1014 | . 872 142 . . Explosive 342 | . . 235 . 107 Electromagnetic 175 | . 175 . . . Impact . | . . . . . Slashing . | . . . . . Piercing . | . . . . . Highest Corruption . | . . . . . Average Corruption . | . . . . . Corruption Purged . | . . . . . Corruption Blocked . | . . . . . Overload Shots . | . . . . . Overflow Damage . | . . . . . Projectiles . | . . . . . Explosions . | . . . . . Melee . | . . . . . Knockbacks . | . . . . . Impact . | . . . . . Kinetic . | . . . . . Secondary . | . . . . . Self-Inflicted Damage 73 | . . 73 . . Shots 4 | . . 4 . . Rammed 2 | . 1 1 . . Targets Rammed 2 | . 1 1 . . Kicked . | . . . . . Crushed . | . . . . . Highest Temperature 324 | . 324 5 . 1 Average Temperature 83 | . 83 5 . 1 Received Heat Transfer 381 | . 375 . . 6 Effects 4 | . 4 . . . Interference 4 | . 4 . . . Siege Activations . | . . . . . Robots Corrupted . | . . . . . Combat Hostiles . | . . . . . Parts Fried . | . . . . . Impact Corruptions . | . . . . . Robots Melted . | . . . . . Combat Hostiles . | . . . . . Parts Melted 4 | . 3 . . 1 Heat Transferred 2424 | . 2274 150 . . Parts Sabotaged . | . . . . . Parts Stolen . | . . . . . Parts Stripped . | . . . . . Power Chain Reactions 1 | . 1 . . . Alert | -11 -10 -10 -10 -9 ------- Run | Yrd Mat Min Exi Min Peak Influence 202 | . 202 192 . 71 Initial 29 | . . 29 . . Average 60 | . 47 102 . 25 Maximum Alert Level 1 | . 1 . . . Low Security (%) 98 | 100 97 100 . 100 Level 1 1 | . 2 . . . Level 2 . | . . . . . Level 3 . | . . . . . Level 4 . | . . . . . Level 5 . | . . . . . High Security . | . . . . . Max Security . | . . . . . Squads Dispatched 2 | . 2 . . . Investigation 1 | . 1 . . . Extermination . | . . . . . Reinforcement 1 | . 1 . . . Assault . | . . . . . Garrison . | . . . . . Intercept . | . . . . . Searches Triggered . | . . . . . Construction Impeded . | . . . . . Haulers Reinforced . | . . . . . Active Scanning Responses . | . . . . . Cargo Convoy Interrupts . | . . . . . Stealth | -11 -10 -10 -10 -9 --------- Run | Yrd Mat Min Exi Min Distress Signals 2 | . 1 . . 1 Communications Jammed . | . . . . . Distress Signals . | . . . . . Times Spotted 38 | . 17 9 . 12 Peak Tracking Total 15 | . 4 3 . 15 Tactical Retreats 6 | . 4 1 . 1 Traps | -11 -10 -10 -10 -9 ------- Run | Yrd Mat Min Exi Min Traps Triggered . | . . . . . Indirectly . | . . . . . Trap Hack Attempts . | . . . . . Triggered . | . . . . . Disarmed . | . . . . . Reprogrammed . | . . . . . Reused . | . . . . . Traps Extracted . | . . . . . Installed . | . . . . . Triggered . | . . . . . Machines | -11 -10 -10 -10 -9 ---------- Run | Yrd Mat Min Exi Min Machines Disabled 3 | . 1 2 . . Max in Single Turn 2 | . 1 2 . . Machines Repaired . | . . . . . Machines Dismantled . | . . . . . Machines Sabotaged . | . . . . . Overloaded Fab Kills . | . . . . . Hacking | -11 -10 -10 -10 -9 --------- Run | Yrd Mat Min Exi Min Machines Accessed 7 | . 2 . 4 1 Terminals 2 | . 2 . . . Fabricators . | . . . . . Repair Stations . | . . . . . Recycling Units . | . . . . . Scanalyzers . | . . . . . Garrison Access . | . . . . . Total Hacks 11 | . 6 . 4 1 Successful 7 | . 2 . 4 1 Failed 4 | . 4 . . . Catastrophic 3 | . 3 . . . Database Lockouts . | . . . . . Manual 6 | . 6 . . . Terminals 6 | . 6 . . . Fabricators . | . . . . . Repair Stations . | . . . . . Recycling Units . | . . . . . Scanalyzers . | . . . . . Garrison Access . | . . . . . Terminal Hacks 7 | . 2 . 4 1 Record 4 | . . . 4 . Part Schematic 1 | . 1 . . . Open Door 1 | . . . . 1 Branch Access Points 1 | . 1 . . . Fabricator Hacks . | . . . . . Repair Station Hacks . | . . . . . Recycling Unit Hacks . | . . . . . Scanalyzer . | . . . . . Garrison Access Hacks . | . . . . . Unauthorized Hacks . | . . . . . Terminals . | . . . . . Fabricators . | . . . . . Repair Stations . | . . . . . Recycling Units . | . . . . . Scanalyzers . | . . . . . Garrison Access . | . . . . . Data Cores Recovered 1 | . 1 . . . Used . | . . . . . Hacking Detections 2 | . 2 . . . Full Trace Events 2 | . 2 . . . Feedback Events . | . . . . . Feedback Blocked . | . . . . . Robot Schematics Acquired . | . . . . . Robots Built . | . . . . . Authchips . | . . . . . Time . | . . . . . Total Robot Build Rating . | . . . . . Part Schematics Acquired 1 | . 1 . . . Parts Built . | . . . . . Authchips . | . . . . . Time . | . . . . . Total Part Build Rating . | . . . . . Parts Repaired . | . . . . . Time . | . . . . . Parts Recycled . | . . . . . Recycled Matter . | . . . . . Retrieved Matter . | . . . . . Retrieved Components . | . . . . . Parts Scanalyzed . | . . . . . Part Schematics Acquired . | . . . . . Parts Damaged . | . . . . . Bothacking | -11 -10 -10 -10 -9 ------------ Run | Yrd Mat Min Exi Min Used RIF Installer . | . . . . . Robots Hacked . | . . . . . Non-combat . | . . . . . Combat . | . . . . . Robot Hacks Applied . | . . . . . Relay Couplers Released . | . . . . . Fabnet Peak Effective % . | . . . . . Robots Rewired . | . . . . . Allies Hacked . | . . . . . Hacks Repelled . | . . . . . Allies | -11 -10 -10 -10 -9 -------- Run | Yrd Mat Min Exi Min Total Allies 3 | . . 3 . . Largest Group 3 | . . 3 3 3 Highest-Rated Group 40 | . . 40 40 40 Highest-Rated Ally 16 | . . 16 16 16 Total Orders . | . . . . . Ally Attacks 24 | . . 11 . 13 Total Damage 326 | . . 116 . 210 Kills 5 | . . 2 . 3 Allies Corrupted . | . . . . . Allies Melted . | . . . . . Intel | -11 -10 -10 -10 -9 ------- Run | Yrd Mat Min Exi Min Robot Analysis Total . | . . . . . Derelict Logs Recovered 1 | . . 1 . . Drone Launches . | . . . . . Drone Recoveries . | . . . . . Exploration | -11 -10 -10 -10 -9 ------------- Run | Yrd Mat Min Exi Min Turns Passed 2709 | 79 1105 658 623 244 Spaces Moved 1919 | 52 514 588 571 194 Core 19 | 19 . . . . Treads 245 | 33 212 . . . Legs . | . . . . . Wheels 1655 | . 302 588 571 194 Hover . | . . . . . Flight . | . . . . . Fastest Speed 50 | 50 90 90 100 115 Average Speed 120 | 128 167 93 107 115 Slowest Speed 480 | 160 480 100 115 115 Overloaded Moves . | . . . . . Propulsion Burnouts . | . . . . . Robots Hopped . | . . . . . Cave-ins Triggered . | . . . . . Exploration Rate (%) 62 | 4 78 97 94 39 Regions Visited 4 Branch Regions 3 Pre-discovered Areas 1 | . . 1 . . Known Exits Taken 1 | . 1 . . . Unknown Exits Taken 3 | 1 . 1 1 . Scrap Searched 1 | . . 1 . . Spaces Dug 22 | . . 22 . . Terrain Destroyed 126 | . 3 103 . 20 Melee . | . . . . . Projectile . | . . . . . AOE 126 | . 3 103 . 20 Terrain Rammed . | . . . . . Walls Destroyed . | . . . . . Machines Disabled . | . . . . . Actions | -11 -10 -10 -10 -9 --------- Run | Yrd Mat Min Exi Min Total 2180 | 64 638 687 579 212 Wait 116 | . 15 82 5 14 Move 1915 | 51 513 587 570 194 Hop . | . . . . . Pick Up 29 | 8 13 5 2 1 Fast Attach . | . . . . . Attach 14 | 5 8 1 . . Detach . | . . . . . Swap 7 | . 4 2 1 . Drop 10 | . 9 . 1 . Fire 87 | . 75 9 . 3 Melee . | . . . . . Ram 1 | . . 1 . . Kick . | . . . . . Crush 1 | . 1 . . . Escape Stasis . | . . . . . Rewire . | . . . . . Trap . | . . . . . Miscellaneous . | . . . . . Route ------- -11/Scrapyard -10/Materials (discovered 3 exits: [*Mat x2] / *Min) -10/Mines (discovered 3 exits: [*Mat x2] / *Exi) -10/Exiles (discovered 2 exits: *Min x2) -9/Mines History --------- Turn | Location | Event 6 | -11/Scrapyard | Discovered new exit (range 16) 80 | -11/Scrapyard | Entered Materials 322 | -10/Materials | Build established: Mutant 367 | -10/Materials | Discovered new exit (range 6) 634 | -10/Materials | Core integrity fell below 50% 662 | -10/Materials | Discovered new exit (range 15) 993 | -10/Materials | Core integrity fell below 20% 1060 | -10/Materials | Discovered new exit (range 15) 1112 | -10/Materials | Identified exit to Mines 1185 | -10/Materials | Entered Mines 1192 | -10/Mines | Assisted by bots powering up and referring to "LRC-V3" 1212 | -10/Mines | A weapon hastily lodged in a ceiling crevice suddenly fell to the ground 1254 | -10/Mines | Build established: Scavenger-Mutant 1265 | -10/Mines | Discovered new exit (range 9) 1356 | -10/Mines | Received a Rocket Launcher from a helpful Derelict 1363 | -10/Mines | YI-UF0 nonchalantly dropped a Grenade Launcher on the ground 1596 | -10/Mines | Discovered new exit (range 8) 1802 | -10/Mines | Build established: Mutant 1825 | -10/Mines | Deemed a non-threat by the Exiles lab entrance 1825 | -10/Mines | Discovered new exit (range 5) 1843 | -10/Mines | Entered Exiles 1843 | -10/Exiles | Found Exiles lab abandoned 1843 | -10/Exiles | Accompanied by 3 allies 2153 | -10/Exiles | Discovered new exit (range 10) 2444 | -10/Exiles | Discovered new exit (range 15) 2466 | -10/Exiles | Entered Mines 2466 | -9/Mines | Accompanied by 3 allies 2486 | -9/Mines | Met a Derelict bent on vengeance 2512 | -9/Mines | Assembled infested the area 2517 | -9/Mines | Assisted by a Guerilla fighting off Assembled 2563 | -9/Mines | Lost 4 allies 2623 | -9/Mines | Found the Drone Emporium 2629 | -9/Mines | Found Prototype Device 2710 | -9/Mines | Destroyed by D-53 Grenadier with Mini Grenade Launcher Last Messages --------------- 02559_ The unstable cave ceiling collapses. 02566_ F2-6Z1(g): "TASTE MY VENGEANCE!" 02622_ Connecting with SHOP.Sys... 02622_ Current location identified: Mines >>Open Door Sealed Doors opened. 02623_ SE-T6X(g): "Well that was anticlimactic. Heard you outside and thought you were from the Merchants Guild. I haven't even officially opened my Drone Emporium yet but am totally ready to tell them where they can shove that C&D." 02625_ SE-T6X(g): "I'm a fan of the free market. Free drones for all! No strings attached!" 02629_ Acquired Prototype Device. 02677_ Acquired 16 matter. 02682_ Acquired 15 matter. 02683_ F2-6Z1(g): "I WILL HAVE VENGEANCE!" 02708_ Lgt. Ion Engine destroyed. 02709_ Grenade Launcher destroyed. 02710_ Enh. Flamer destroyed. Map ----- +----------------------------------------------------+ | #??????### # ?????????????????????? | | #######????????? #? ?????????????????????? | | #???????????????? ?? ??????????????????????? | | #????????????????# #??## ??????????????????????? | | #???####??????????$#???????????????????????????? | | ##?## ######???????#???????????????????????????? | | ### # #?####? #???????????????????????????? | | ### #### ## ###?????????????????????????? | | # # ## ##????????????????????????? | | # ##???????????????????????? | | # ##??????????????????????? | | ## # #??????????????????????? | | ?###### #??????????????????????? | | ??????## ## #?????? #??????????????? | | ?????## ##?# ##????? ###????????????? | | ????## ###??# ##?????# ????????????? | | ????# ##????# #?????? ???????????? | | #??# ##?????# #????? ???????????? | | #??# ## #???#### #???? d ??????????? | | #??## #### #??## #???? d ??????????? | | #???###### ##?# #?## ??????????? | | #??????## ### ## # #??????????? | | #??????# """ = #????????????? | | #??????# """ % #???????????????? | | #??????# """ #### #????????????????? | | #?????# ??## @ ##????????????????? | | #?????# #??## ## !???????????? | | #?????## ### #???# #???? ! =??????????? | | #??????##???## ##???# # ??????????????????? | | #????????????####????# # ## ? ????????????????? | | ###################### ###? ? ! ???????????????? | | #???? ? ?????????????? | | #########################???? ##?## ????????????? | | #?????????????????????????????#?????##???????????? | | ?????????????????????????????????????????????????? | | ?????????????????????????????????????????????????? | | | | | | | | | | | | | | | | | | | | | | | | | | | | | +----------------------------------------------------+ Best States ------------- Heat Dissipation 25 Energy Generation 10 Energy Capacity 250 Matter Stores 300 Matter Capacity 300 Sight Range 16 Terrain Scan Density 10 ECM Strength 1 Evasion (%) 42 Recoil Reduction 2 Item Schematics ----------------- Lgt. Treads | -10/Materials | Hacked Robot Schematics ------------------ None Fabricated ------------ Nothing Alien Tech Used ----------------- None Achievements -------------- None Challenges ------------ None Game ------ Seed FieldAblativeTriangulator Manual? 0 Play Time 00:19:56 Cumulative 21.6 hours Start 2024.04.21 @ 20:36:40 End 2024.04.21 @ 20:55:39 Sessions 1 Manual Loads 0 Difficulty Rogue Special Mode None Game No. 20 Rogue 5 Adventurer 11 Explorer 4 Win Type - Total 1 Types 1/0/0/0/0/0/0/0/0 Lore% 28 Gallery% 29 Achievement% 29 Wizard Run 0 Options --------- Layout 1 ASCII 0 Keyboard 0 Movement Numpad Keybinds 0 Fullscreen 1 Font 20/SmallcapsGlow Map View 54x42 Zoom Use 0% Tactical HUD 1 Map Filters NONE Filters NONE Steam 1 RUN: 05987b5e-7bf5-4026-aa85-cb09d569caf9